[Event "*** Titled Tuesday Blitz"]
[Site "Chess.com"]
[Date "2018.05.01"]
[Round "6"]
[White "sergiochess83"]
[Black "FastChance"]
[Result "0-1"]
[WhiteElo "2790"]
[BlackElo "2673"]
[TimeControl "180+2"]
[EndTime "14:20:29 PDT"]
[Termination "FastChance won on time"]

1. e4 {[%clk 0:03:01.9]} 1... c6 {[%clk 0:03:00]} 2. d4 {[%clk 0:03:01.7]} 2...
d5 {[%clk 0:03:00.7]} 3. e5 {[%clk 0:03:03.2]} 3... Bf5 {[%clk 0:03:01.9]} 4.
Nd2 {[%clk 0:03:03.1]} 4... e6 {[%clk 0:03:00.8]} 5. Nb3 {[%clk 0:03:04]} 5...
Nd7 {[%clk 0:03:00.4]} 6. Nf3 {[%clk 0:03:05.1]} 6... Ne7 {[%clk 0:02:59.1]} 7.
Be2 {[%clk 0:03:06]} 7... Bg6 {[%clk 0:03:00.4]} 8. O-O {[%clk 0:03:05.3]} 8...
Nc8 {[%clk 0:03:00.2]} 9. a4 {[%clk 0:03:05.9]} 9... Be7 {[%clk 0:03:00.8]} 10.
a5 {[%clk 0:03:06.3]} 10... O-O {[%clk 0:03:00.9]} 11. Be3 {[%clk 0:03:05.2]}
11... Qc7 {[%clk 0:02:58.6]} 12. Rc1 {[%clk 0:03:02.9]} 12... b6 {[%clk
0:02:56.7]} 13. Qd2 {[%clk 0:03:00.1]} 13... f6 {[%clk 0:02:44.3]} 14. exf6
{[%clk 0:02:40]} 14... Nxf6 {[%clk 0:02:44.9]} 15. Ne5 {[%clk 0:02:37.6]} 15...
Ne4 {[%clk 0:02:42.5]} 16. Qe1 {[%clk 0:02:36.3]} 16... Be8 {[%clk 0:02:22.7]}
17. c4 {[%clk 0:02:31]} 17... Ncd6 {[%clk 0:02:18.2]} 18. Bg4 {[%clk 0:02:23.9]}
18... Nf5 {[%clk 0:02:09.7]} 19. f3 {[%clk 0:01:51.3]} 19... Nxe3 {[%clk
0:02:02]} 20. Bxe6+ {[%clk 0:01:46.6]} 20... Kh8 {[%clk 0:02:02.7]} 21. Qxe3
{[%clk 0:01:47.6]} 21... Ng5 {[%clk 0:01:44.9]} 22. cxd5 {[%clk 0:01:35.6]}
22... Nxe6 {[%clk 0:01:42.8]} 23. dxe6 {[%clk 0:01:22]} 23... Qd6 {[%clk
0:01:41]} 24. Nc4 {[%clk 0:01:13.5]} 24... Qb4 {[%clk 0:01:34.1]} 25. axb6
{[%clk 0:01:01.1]} 25... axb6 {[%clk 0:01:36]} 26. Nbd2 {[%clk 0:01:01.8]} 26...
b5 {[%clk 0:01:31.3]} 27. Ne5 {[%clk 0:00:45.2]} 27... Qxb2 {[%clk 0:01:08]} 28.
Nxc6 {[%clk 0:00:32.9]} 28... Bxc6 {[%clk 0:01:09]} 29. Rxc6 {[%clk 0:00:34.4]}
29... Ra3 {[%clk 0:01:10.2]} 30. Qe2 {[%clk 0:00:06.3]} 30... Ra2 {[%clk
0:00:56.5]} 31. Rf2 {[%clk 0:00:07.4]} 31... Qxd4 {[%clk 0:00:48.9]} 0-1

[Event "*** Titled Tuesday Blitz"]
[Site "Chess.com"]
[Date "2018.05.01"]
[Round "6"]
[White "bugsbunny444"]
[Black "bangchess21"]
[Result "0-1"]
[WhiteElo "2332"]
[BlackElo "2504"]
[TimeControl "180+2"]
[EndTime "14:20:37 PDT"]
[Termination "bangchess21 won by resignation"]

1. Nf3 {[%clk 0:03:01.9]} 1... c5 {[%clk 0:03:00.7]} 2. c4 {[%clk 0:03:02.6]}
2... g6 {[%clk 0:03:00.5]} 3. d4 {[%clk 0:03:03]} 3... cxd4 {[%clk 0:03:01.1]}
4. Nxd4 {[%clk 0:03:03.3]} 4... Nc6 {[%clk 0:03:02.2]} 5. e4 {[%clk 0:03:04.1]}
5... Bg7 {[%clk 0:03:02.6]} 6. Be3 {[%clk 0:03:05.4]} 6... Qb6 {[%clk
0:03:03.2]} 7. Nb5 {[%clk 0:03:05.4]} 7... Qd8 {[%clk 0:03:03.4]} 8. N1c3 {[%clk
0:03:05.1]} 8... Nf6 {[%clk 0:03:04.1]} 9. Be2 {[%clk 0:02:59.1]} 9... O-O
{[%clk 0:03:03.8]} 10. O-O {[%clk 0:02:59.7]} 10... d6 {[%clk 0:03:04]} 11. f3
{[%clk 0:02:46]} 11... Bd7 {[%clk 0:03:02.3]} 12. Qd2 {[%clk 0:02:36.4]} 12...
a6 {[%clk 0:03:03.1]} 13. Nd4 {[%clk 0:02:30.5]} 13... Nxd4 {[%clk 0:03:01.6]}
14. Bxd4 {[%clk 0:02:31.7]} 14... Bc6 {[%clk 0:03:03.5]} 15. b4 {[%clk 0:02:33]}
15... Bd7 {[%clk 0:02:44]} 16. Rfd1 {[%clk 0:02:30.1]} 16... Be6 {[%clk
0:02:39]} 17. a3 {[%clk 0:01:53.7]} 17... Rc8 {[%clk 0:02:30.1]} 18. Nd5 {[%clk
0:01:52.9]} 18... Nd7 {[%clk 0:02:26]} 19. Rac1 {[%clk 0:01:43.4]} 19... Bxd5
{[%clk 0:02:14.1]} 20. exd5 {[%clk 0:01:43.1]} 20... Bxd4+ {[%clk 0:02:14.7]}
21. Qxd4 {[%clk 0:01:43.5]} 21... Qb6 {[%clk 0:02:15.6]} 22. Qxb6 {[%clk
0:01:20.4]} 22... Nxb6 {[%clk 0:02:16]} 23. c5 {[%clk 0:00:57]} 23... Na4 {[%clk
0:01:48.7]} 24. c6 {[%clk 0:00:42.3]} 24... b5 {[%clk 0:01:46.1]} 25. c7 {[%clk
0:00:36.6]} 25... Ra8 {[%clk 0:01:35.3]} 26. Rc6 {[%clk 0:00:29.5]} 26... Rfc8
{[%clk 0:01:35.8]} 27. f4 {[%clk 0:00:25.2]} 27... Kf8 {[%clk 0:01:34.7]} 28.
Re1 {[%clk 0:00:19.4]} 28... Ra7 {[%clk 0:01:34]} 29. Rec1 {[%clk 0:00:11.3]}
29... Ke8 {[%clk 0:01:34.8]} 30. Bg4 {[%clk 0:00:09.2]} 30... f5 {[%clk
0:01:35.1]} 31. Bd1 {[%clk 0:00:07.2]} 31... Kd7 {[%clk 0:01:08.8]} 32. Bxa4
{[%clk 0:00:04.8]} 32... bxa4 {[%clk 0:01:10]} 33. g3 {[%clk 0:00:02.5]} 33...
Raxc7 {[%clk 0:01:05.1]} 34. Rxc7+ {[%clk 0:00:02.3]} 34... Rxc7 {[%clk
0:01:06.2]} 0-1

[Event "*** Titled Tuesday Blitz"]
[Site "Chess.com"]
[Date "2018.05.01"]
[Round "6"]
[White "dolynachess"]
[Black "pultineviciuspaulius"]
[Result "0-1"]
[WhiteElo "2377"]
[BlackElo "2542"]
[TimeControl "180+2"]
[EndTime "14:20:45 PDT"]
[Termination "pultineviciuspaulius won by resignation"]

1. d4 {[%clk 0:03:01.9]} 1... Nf6 {[%clk 0:03:01.3]} 2. c4 {[%clk 0:03:00.4]}
2... g6 {[%clk 0:03:02.7]} 3. Nc3 {[%clk 0:03:00.5]} 3... d5 {[%clk 0:03:04.2]}
4. cxd5 {[%clk 0:03:02.4]} 4... Nxd5 {[%clk 0:03:06]} 5. e4 {[%clk 0:03:04.1]}
5... Nxc3 {[%clk 0:03:07.4]} 6. bxc3 {[%clk 0:03:06]} 6... Bg7 {[%clk
0:03:08.9]} 7. Bc4 {[%clk 0:03:07.1]} 7... c5 {[%clk 0:03:09.8]} 8. Ne2 {[%clk
0:03:08.1]} 8... O-O {[%clk 0:03:10.5]} 9. O-O {[%clk 0:03:09.5]} 9... Nc6
{[%clk 0:03:11.9]} 10. Be3 {[%clk 0:03:10.9]} 10... Bg4 {[%clk 0:03:13.5]} 11.
f3 {[%clk 0:03:11.5]} 11... Bd7 {[%clk 0:03:15.1]} 12. Rc1 {[%clk 0:03:09.8]}
12... Rc8 {[%clk 0:03:16.6]} 13. dxc5 {[%clk 0:03:02.1]} 13... Na5 {[%clk
0:03:16.1]} 14. Bb3 {[%clk 0:02:59.5]} 14... Bb5 {[%clk 0:03:16.3]} 15. c4
{[%clk 0:02:48.6]} 15... Ba6 {[%clk 0:03:14.8]} 16. Qc2 {[%clk 0:02:40.4]} 16...
Nc6 {[%clk 0:03:12.3]} 17. Rfd1 {[%clk 0:02:39.1]} 17... Qa5 {[%clk 0:03:08.9]}
18. h3 {[%clk 0:02:20.9]} 18... Rfd8 {[%clk 0:03:08.8]} 19. Kh1 {[%clk
0:02:17.2]} 19... e6 {[%clk 0:03:04.8]} 20. Rd6 {[%clk 0:02:15.4]} 20... Be5
{[%clk 0:03:03.5]} 21. Rcd1 {[%clk 0:02:15.5]} 21... Bxd6 {[%clk 0:03:03.5]} 22.
cxd6 {[%clk 0:02:12.4]} 22... Ne5 {[%clk 0:02:49.8]} 23. c5 {[%clk 0:01:55.9]}
23... b6 {[%clk 0:02:40.4]} 24. f4 {[%clk 0:01:25.9]} 24... Nd7 {[%clk
0:02:08.9]} 25. f5 {[%clk 0:00:50.3]} 25... Nxc5 {[%clk 0:02:07.5]} 26. fxe6
{[%clk 0:00:49.1]} 26... Nxe6 {[%clk 0:02:08.4]} 27. Qd2 {[%clk 0:00:43.3]}
27... Qxd2 {[%clk 0:02:08.1]} 28. Rxd2 {[%clk 0:00:44.7]} 28... Bxe2 {[%clk
0:02:09.4]} 29. Rxe2 {[%clk 0:00:45.5]} 29... Rxd6 {[%clk 0:02:09.8]} 30. Kh2
{[%clk 0:00:45.8]} 30... Nd4 {[%clk 0:02:10.9]} 31. Rd2 {[%clk 0:00:44.4]} 31...
Rcd8 {[%clk 0:02:12.2]} 32. Bd5 {[%clk 0:00:44.8]} 32... Ne6 {[%clk 0:02:10.3]}
33. Rc2 {[%clk 0:00:43.7]} 33... Kg7 {[%clk 0:02:08.4]} 34. h4 {[%clk
0:00:43.8]} 34... h5 {[%clk 0:02:08.4]} 35. Kg3 {[%clk 0:00:44.6]} 35... Rxd5
{[%clk 0:02:09.3]} 36. exd5 {[%clk 0:00:45.3]} 36... Rxd5 {[%clk 0:02:11.2]} 37.
Kf3 {[%clk 0:00:42.2]} 37... Ra5 {[%clk 0:02:09.8]} 38. Rd2 {[%clk 0:00:37.2]}
38... Kf6 {[%clk 0:02:09.1]} 39. g3 {[%clk 0:00:32.8]} 39... Ke5 {[%clk
0:02:09.3]} 40. Rd7 {[%clk 0:00:29.7]} 40... f5 {[%clk 0:02:06.8]} 41. Rd2
{[%clk 0:00:25.3]} 41... Ra3 {[%clk 0:02:07.6]} 42. Kf2 {[%clk 0:00:25.6]} 42...
Ke4 {[%clk 0:02:08.6]} 43. Re2 {[%clk 0:00:26.1]} 43... Nd4 {[%clk 0:02:07.5]}
44. Bxd4+ {[%clk 0:00:23.5]} 44... Kxd4 {[%clk 0:02:08.9]} 45. Re6 {[%clk
0:00:19.5]} 45... Rxa2+ {[%clk 0:02:09.7]} 46. Kf3 {[%clk 0:00:21.4]} 46... b5
{[%clk 0:02:08.6]} 47. Rxg6 {[%clk 0:00:22.7]} 47... b4 {[%clk 0:02:09.6]} 48.
Rg8 {[%clk 0:00:19.5]} 48... b3 {[%clk 0:02:10.1]} 49. Rb8 {[%clk 0:00:21.4]}
49... b2 {[%clk 0:02:10.2]} 50. Kf4 {[%clk 0:00:22.7]} 50... a5 {[%clk
0:02:11.2]} 51. Kg5 {[%clk 0:00:22.4]} 51... a4 {[%clk 0:02:12.3]} 52. Kxh5
{[%clk 0:00:23.8]} 52... a3 {[%clk 0:02:13.6]} 53. Kg6 {[%clk 0:00:25.2]} 53...
Ra1 {[%clk 0:02:15]} 54. h5 {[%clk 0:00:26.3]} 54... b1=Q {[%clk 0:02:16.1]} 55.
Rxb1 {[%clk 0:00:26.3]} 55... Rxb1 {[%clk 0:02:18]} 56. Kxf5 {[%clk 0:00:27.3]}
56... a2 {[%clk 0:02:18.1]} 57. h6 {[%clk 0:00:29.2]} 57... a1=Q {[%clk
0:02:19.2]} 58. h7 {[%clk 0:00:31.1]} 58... Kd3 {[%clk 0:02:20.4]} 59. g4 {[%clk
0:00:31.7]} 59... Qh8 {[%clk 0:02:22.3]} 60. g5 {[%clk 0:00:33]} 60... Rb7
{[%clk 0:02:23.7]} 61. g6 {[%clk 0:00:34.9]} 61... Rxh7 {[%clk 0:02:24.9]} 62.
g7 {[%clk 0:00:34.7]} 62... Qxg7 {[%clk 0:02:24.9]} 0-1

[Event "*** Titled Tuesday Blitz"]
[Site "Chess.com"]
[Date "2018.05.01"]
[Round "6"]
[White "FabianoCaruana"]
[Black "Bryakin_Mikhail"]
[Result "1-0"]
[WhiteElo "2802"]
[BlackElo "2602"]
[TimeControl "180+2"]
[EndTime "14:20:46 PDT"]
[Termination "FabianoCaruana won by resignation"]

1. Nf3 {[%clk 0:03:01.9]} 1... c6 {[%clk 0:03:00.4]} 2. e4 {[%clk 0:03:02]} 2...
d5 {[%clk 0:02:52.1]} 3. e5 {[%clk 0:03:02.9]} 3... Bg4 {[%clk 0:02:49.3]} 4. d4
{[%clk 0:03:01.1]} 4... e6 {[%clk 0:02:48.6]} 5. c3 {[%clk 0:03:00.1]} 5... Nd7
{[%clk 0:02:48.2]} 6. Nbd2 {[%clk 0:02:58.6]} 6... Rc8 {[%clk 0:02:45]} 7. h3
{[%clk 0:02:58.4]} 7... Bxf3 {[%clk 0:02:44]} 8. Nxf3 {[%clk 0:02:58.9]} 8...
Ne7 {[%clk 0:02:44.4]} 9. Bd3 {[%clk 0:02:58.4]} 9... Ng6 {[%clk 0:02:39.8]} 10.
O-O {[%clk 0:02:58.4]} 10... c5 {[%clk 0:02:38.5]} 11. g3 {[%clk 0:02:58]} 11...
Qb6 {[%clk 0:02:37.4]} 12. h4 {[%clk 0:02:57.5]} 12... cxd4 {[%clk 0:02:27.3]}
13. cxd4 {[%clk 0:02:56.1]} 13... Ne7 {[%clk 0:02:27.7]} 14. Be3 {[%clk
0:02:51.1]} 14... Nc6 {[%clk 0:02:27.3]} 15. Ng5 {[%clk 0:02:46.2]} 15... Nd8
{[%clk 0:01:54.2]} 16. Nxh7 {[%clk 0:02:41.2]} 16... Qxb2 {[%clk 0:01:45.7]} 17.
Qh5 {[%clk 0:02:29.7]} 17... Rg8 {[%clk 0:01:21.1]} 18. Bg6 {[%clk 0:02:03.7]}
18... Be7 {[%clk 0:01:06.4]} 19. Rab1 {[%clk 0:01:46.6]} 19... Qxa2 {[%clk
0:00:56.2]} 20. Rxb7 {[%clk 0:01:43.4]} 20... Qa6 {[%clk 0:00:35.5]} 21. Rfb1
{[%clk 0:01:19.9]} 21... fxg6 {[%clk 0:00:34]} 22. Qxg6+ {[%clk 0:01:21.8]}
22... Nf7 {[%clk 0:00:35.2]} 23. Bg5 {[%clk 0:00:58.5]} 23... Rd8 {[%clk
0:00:13.9]} 24. Rc7 {[%clk 0:00:46.4]} 24... Qe2 {[%clk 0:00:10.4]} 25. Qxe6
{[%clk 0:00:39.5]} 25... Nxg5 {[%clk 0:00:03.7]} 26. Qxg8+ {[%clk 0:00:36.3]}
26... Nf8 {[%clk 0:00:03.3]} 27. hxg5 {[%clk 0:00:20.9]} 27... Qh5 {[%clk
0:00:04.6]} 28. Nxf8 {[%clk 0:00:18.9]} 28... Bxf8 {[%clk 0:00:03.8]} 29. Qe6+
{[%clk 0:00:19]} 1-0

[Event "*** Titled Tuesday Blitz"]
[Site "Chess.com"]
[Date "2018.05.01"]
[Round "6"]
[White "Sanan_Sjugirov"]
[Black "Vamostodorecto"]
[Result "1-0"]
[WhiteElo "2780"]
[BlackElo "2401"]
[TimeControl "180+2"]
[EndTime "14:20:46 PDT"]
[Termination "Sanan_Sjugirov won by resignation"]

1. e4 {[%clk 0:03:01.9]} 1... e5 {[%clk 0:02:43.8]} 2. Nf3 {[%clk 0:03:02.6]}
2... Nc6 {[%clk 0:02:44.2]} 3. Bb5 {[%clk 0:03:03.4]} 3... a6 {[%clk 0:02:44.3]}
4. Ba4 {[%clk 0:03:04.4]} 4... Nf6 {[%clk 0:02:44.9]} 5. O-O {[%clk 0:03:05.4]}
5... b5 {[%clk 0:02:46.4]} 6. Bb3 {[%clk 0:03:05.7]} 6... Bb7 {[%clk 0:02:47.8]}
7. d3 {[%clk 0:03:03.4]} 7... Bc5 {[%clk 0:02:47.8]} 8. Nc3 {[%clk 0:02:57.7]}
8... O-O {[%clk 0:02:47.1]} 9. Bg5 {[%clk 0:02:57.4]} 9... h6 {[%clk 0:02:46.5]}
10. Bh4 {[%clk 0:02:57.1]} 10... g5 {[%clk 0:02:44.8]} 11. Nxg5 {[%clk
0:02:45.2]} 11... hxg5 {[%clk 0:02:46.7]} 12. Bxg5 {[%clk 0:02:46.8]} 12... Be7
{[%clk 0:02:46.4]} 13. f4 {[%clk 0:02:45.2]} 13... Nh7 {[%clk 0:02:42.3]} 14.
Bh6 {[%clk 0:02:43.6]} 14... Bc5+ {[%clk 0:02:18.8]} 15. Kh1 {[%clk 0:02:42.2]}
15... Qh4 {[%clk 0:02:20.7]} 16. Bxf8 {[%clk 0:02:38.9]} 16... Rxf8 {[%clk
0:02:18.6]} 17. Nd5 {[%clk 0:02:29.9]} 17... Nd4 {[%clk 0:01:52.3]} 18. fxe5
{[%clk 0:02:27.3]} 18... Nxb3 {[%clk 0:01:51.1]} 19. axb3 {[%clk 0:02:27.2]}
19... Bxd5 {[%clk 0:01:12.4]} 20. exd5 {[%clk 0:02:28.2]} 20... Bd4 {[%clk
0:01:08.1]} 21. Qe1 {[%clk 0:02:19.2]} 21... Qh6 {[%clk 0:00:55.8]} 22. c3
{[%clk 0:02:15.4]} 22... Be3 {[%clk 0:00:52.1]} 23. Rf3 {[%clk 0:02:03.3]} 23...
Bc5 {[%clk 0:00:33.6]} 24. d4 {[%clk 0:01:59.2]} 24... Be7 {[%clk 0:00:33.4]}
25. Rh3 {[%clk 0:01:57.5]} 25... Qg6 {[%clk 0:00:28.8]} 26. Rg3 {[%clk
0:01:56.4]} 26... Bg5 {[%clk 0:00:30.4]} 27. Kg1 {[%clk 0:01:48]} 27... Qh6
{[%clk 0:00:28.4]} 28. Qe4 {[%clk 0:01:44.7]} 28... Kh8 {[%clk 0:00:24.8]} 29.
Rh3 {[%clk 0:01:44.4]} 29... Qg6 {[%clk 0:00:21.4]} 30. Qxg6 {[%clk 0:01:44.7]}
30... fxg6 {[%clk 0:00:23.3]} 31. Rxa6 {[%clk 0:01:45]} 31... Bc1 {[%clk
0:00:21.3]} 32. Rxg6 {[%clk 0:01:42.8]} 32... b4 {[%clk 0:00:15.4]} 33. e6
{[%clk 0:01:38.1]} 33... dxe6 {[%clk 0:00:13.3]} 34. dxe6 {[%clk 0:01:40]} 34...
Bxb2 {[%clk 0:00:11.3]} 35. Rgh6 {[%clk 0:01:38.8]} 35... bxc3 {[%clk
0:00:09.5]} 36. Rxh7+ {[%clk 0:01:39.1]} 36... Kg8 {[%clk 0:00:10.7]} 37. Rh8+
{[%clk 0:01:35.5]} 37... Kg7 {[%clk 0:00:11.3]} 38. R3h7+ {[%clk 0:01:31.6]}
38... Kg6 {[%clk 0:00:11.8]} 39. Rxf8 {[%clk 0:01:30.5]} 39... Kxh7 {[%clk
0:00:12.3]} 40. e7 {[%clk 0:01:29.3]} 40... c2 {[%clk 0:00:13.3]} 41. Rf1 {[%clk
0:01:30]} 41... Bxd4+ {[%clk 0:00:09.4]} 42. Kh1 {[%clk 0:01:31]} 1-0

[Event "*** Titled Tuesday Blitz"]
[Site "Chess.com"]
[Date "2018.05.01"]
[Round "6"]
[White "GameOverBro"]
[Black "Hanging_pointer"]
[Result "1-0"]
[WhiteElo "2421"]
[BlackElo "2331"]
[TimeControl "180+2"]
[EndTime "14:20:46 PDT"]
[Termination "GameOverBro won by resignation"]

1. e4 {[%clk 0:03:01.9]} 1... c5 {[%clk 0:01:51.8]} 2. Ne2 {[%clk 0:03:00.4]}
2... d6 {[%clk 0:01:53.2]} 3. g3 {[%clk 0:03:00.9]} 3... g6 {[%clk 0:01:48.8]}
4. Bg2 {[%clk 0:03:01.4]} 4... Bg7 {[%clk 0:01:50.3]} 5. c3 {[%clk 0:03:02.9]}
5... Nc6 {[%clk 0:01:48.8]} 6. d4 {[%clk 0:03:04]} 6... Nf6 {[%clk 0:01:50.1]}
7. O-O {[%clk 0:03:04.6]} 7... O-O {[%clk 0:01:49.6]} 8. a3 {[%clk 0:02:59]}
8... Bd7 {[%clk 0:01:48.7]} 9. b4 {[%clk 0:02:58.6]} 9... cxd4 {[%clk
0:01:48.1]} 10. cxd4 {[%clk 0:02:59.2]} 10... Bg4 {[%clk 0:01:49.5]} 11. f3
{[%clk 0:02:58.9]} 11... Bd7 {[%clk 0:01:45.7]} 12. Be3 {[%clk 0:02:58.9]} 12...
a5 {[%clk 0:01:44.4]} 13. b5 {[%clk 0:02:59.3]} 13... Na7 {[%clk 0:01:45.8]} 14.
a4 {[%clk 0:02:57.7]} 14... Qc7 {[%clk 0:01:47.1]} 15. Nd2 {[%clk 0:02:50.1]}
15... Qb6 {[%clk 0:01:46.4]} 16. Qb3 {[%clk 0:02:42.6]} 16... Rfc8 {[%clk
0:01:45.1]} 17. d5 {[%clk 0:02:40.2]} 17... Rc5 {[%clk 0:01:44]} 18. Rac1 {[%clk
0:02:32.9]} 18... Nh5 {[%clk 0:01:41.4]} 19. Nc4 {[%clk 0:02:28.9]} 19... Qd8
{[%clk 0:01:39]} 20. Bxc5 {[%clk 0:02:21.8]} 20... dxc5 {[%clk 0:01:40.9]} 21.
b6 {[%clk 0:02:07]} 21... Bh6 {[%clk 0:01:32.7]} 22. bxa7 {[%clk 0:02:00.6]}
22... Bxc1 {[%clk 0:01:33.3]} 23. Rxc1 {[%clk 0:02:00.5]} 23... Rxa7 {[%clk
0:01:34.8]} 24. g4 {[%clk 0:01:59.2]} 24... Nf6 {[%clk 0:01:34.4]} 25. Nb6
{[%clk 0:01:58.5]} 25... Ra6 {[%clk 0:01:33.7]} 26. Rb1 {[%clk 0:01:53.4]} 26...
g5 {[%clk 0:01:32.2]} 27. e5 {[%clk 0:01:52.9]} 27... Qxb6 {[%clk 0:01:27.5]}
28. Qxb6 {[%clk 0:01:52.2]} 28... Rxb6 {[%clk 0:01:28.7]} 29. Rxb6 {[%clk
0:01:53.7]} 29... Nxd5 {[%clk 0:01:30.5]} 30. Rxb7 {[%clk 0:01:54.8]} 30... Bxa4
{[%clk 0:01:30.5]} 31. f4 {[%clk 0:01:39.5]} 31... Bc6 {[%clk 0:01:29.8]} 32.
Bxd5 {[%clk 0:01:37.6]} 32... Bxd5 {[%clk 0:01:31.7]} 33. Rb8+ {[%clk
0:01:31.3]} 33... Kg7 {[%clk 0:01:31.6]} 34. Nc3 {[%clk 0:01:32.7]} 34... Bf3
{[%clk 0:01:31]} 35. fxg5 {[%clk 0:01:33.4]} 35... Bxg4 {[%clk 0:01:30.9]} 36.
Kf2 {[%clk 0:01:30.1]} 36... Kg6 {[%clk 0:01:30.7]} 37. h4 {[%clk 0:01:30]}
37... Kf5 {[%clk 0:01:29.3]} 38. Kg3 {[%clk 0:01:30.6]} 38... Bh5 {[%clk
0:01:29.3]} 39. Rb5 {[%clk 0:01:30.3]} 39... Kxe5 {[%clk 0:01:29]} 40. Rxc5+
{[%clk 0:01:31.7]} 40... Kd4 {[%clk 0:01:30.4]} 41. Rc7 {[%clk 0:01:29.7]} 41...
Kd3 {[%clk 0:01:30.3]} 42. Nb5 {[%clk 0:01:27.6]} 42... e5 {[%clk 0:01:29.8]}
43. Ra7 {[%clk 0:01:25]} 43... e4 {[%clk 0:01:29.7]} 44. Rxa5 {[%clk 0:01:25.4]}
44... e3 {[%clk 0:01:30.9]} 45. Ra3+ {[%clk 0:01:24.9]} 45... Kd2 {[%clk
0:01:30.7]} 46. Nd4 {[%clk 0:01:21]} 46... e2 {[%clk 0:01:29]} 47. Ra2+ {[%clk
0:01:21.6]} 47... Kd3 {[%clk 0:01:28.8]} 48. Nxe2 {[%clk 0:01:16.4]} 48... Bxe2
{[%clk 0:01:30.7]} 49. Kf4 {[%clk 0:01:15.7]} 49... Bh5 {[%clk 0:01:29.7]} 50.
Kf5 {[%clk 0:01:15.2]} 50... Bg6+ {[%clk 0:01:29]} 51. Kf6 {[%clk 0:01:16.3]}
51... Ke3 {[%clk 0:01:28.9]} 52. Ra4 {[%clk 0:01:06.7]} 52... Kf3 {[%clk
0:01:28.6]} 53. Kg7 {[%clk 0:01:04.6]} 53... Ke3 {[%clk 0:01:28.3]} 54. Kh6
{[%clk 0:01:05.5]} 54... Kf3 {[%clk 0:01:27.5]} 55. h5 {[%clk 0:01:05.9]} 55...
Be4 {[%clk 0:01:29]} 56. Rxe4 {[%clk 0:01:04.4]} 56... Kxe4 {[%clk 0:01:26.8]}
57. Kxh7 {[%clk 0:01:05.8]} 57... Ke5 {[%clk 0:01:28]} 58. g6 {[%clk 0:01:05.6]}
58... fxg6 {[%clk 0:01:29.9]} 59. hxg6 {[%clk 0:01:06.4]} 1-0

[Event "*** Titled Tuesday Blitz"]
[Site "Chess.com"]
[Date "2018.05.01"]
[Round "6"]
[White "Alexander_Moskalenko"]
[Black "HarutyunianTigranK"]
[Result "1-0"]
[WhiteElo "2762"]
[BlackElo "2727"]
[TimeControl "180+2"]
[EndTime "14:20:59 PDT"]
[Termination "Alexander_Moskalenko won by resignation"]

1. d4 {[%clk 0:03:01.9]} 1... Nf6 {[%clk 0:03:00.8]} 2. Nf3 {[%clk 0:03:03.2]}
2... d5 {[%clk 0:03:01.3]} 3. Bf4 {[%clk 0:03:04.6]} 3... e6 {[%clk 0:02:59.6]}
4. e3 {[%clk 0:03:05.3]} 4... Bd6 {[%clk 0:02:52]} 5. Bg3 {[%clk 0:03:05.4]}
5... O-O {[%clk 0:02:52.7]} 6. Nbd2 {[%clk 0:03:06]} 6... c5 {[%clk 0:02:53.7]}
7. c3 {[%clk 0:03:07.4]} 7... Nc6 {[%clk 0:02:54.7]} 8. Bb5 {[%clk 0:03:08]}
8... Ne7 {[%clk 0:02:52.8]} 9. Bd3 {[%clk 0:03:06.5]} 9... b6 {[%clk 0:02:51.5]}
10. Bxd6 {[%clk 0:03:01.4]} 10... Qxd6 {[%clk 0:02:51.8]} 11. Ne5 {[%clk
0:03:03.3]} 11... a5 {[%clk 0:02:43.9]} 12. Qe2 {[%clk 0:03:03.8]} 12... c4
{[%clk 0:02:31.6]} 13. Bc2 {[%clk 0:03:04.2]} 13... b5 {[%clk 0:02:33]} 14. g4
{[%clk 0:02:55.5]} 14... Ng6 {[%clk 0:02:26]} 15. f4 {[%clk 0:02:53.7]} 15...
Bb7 {[%clk 0:02:11.7]} 16. h4 {[%clk 0:02:44.1]} 16... b4 {[%clk 0:02:04.9]} 17.
h5 {[%clk 0:02:14.6]} 17... Ne7 {[%clk 0:02:05.5]} 18. g5 {[%clk 0:02:16.1]}
18... Ne4 {[%clk 0:01:53.8]} 19. h6 {[%clk 0:02:14.6]} 19... g6 {[%clk
0:01:34.7]} 20. Bxe4 {[%clk 0:02:15.5]} 20... bxc3 {[%clk 0:01:26.9]} 21. bxc3
{[%clk 0:02:10.1]} 21... dxe4 {[%clk 0:01:27.9]} 22. Ng4 {[%clk 0:02:12]} 22...
Nf5 {[%clk 0:01:11.9]} 23. Kf2 {[%clk 0:02:12.2]} 23... Bd5 {[%clk 0:01:09]} 24.
Nf6+ {[%clk 0:02:11.6]} 24... Kh8 {[%clk 0:01:09.6]} 25. Ndxe4 {[%clk
0:02:13.5]} 25... Qc6 {[%clk 0:01:02.4]} 26. Qf3 {[%clk 0:02:08]} 26... Nd6
{[%clk 0:00:58.3]} 27. Nxd5 {[%clk 0:02:04]} 27... exd5 {[%clk 0:00:58.6]} 28.
Nf6 {[%clk 0:02:05.1]} 28... Ne4+ {[%clk 0:00:53.4]} 29. Nxe4 {[%clk 0:01:58.4]}
29... dxe4 {[%clk 0:00:55.3]} 30. Qg4 {[%clk 0:01:53.8]} 30... Rab8 {[%clk
0:00:49.1]} 31. Rhb1 {[%clk 0:01:53.9]} 31... Qa4 {[%clk 0:00:44.1]} 32. Qe2
{[%clk 0:01:54.4]} 32... Rfc8 {[%clk 0:00:23.6]} 33. Qd2 {[%clk 0:01:54.8]}
33... Qd7 {[%clk 0:00:18.6]} 34. d5 {[%clk 0:01:52.3]} 34... f6 {[%clk
0:00:11.8]} 35. Qd4 {[%clk 0:01:52.9]} 35... Qd6 {[%clk 0:00:07.7]} 36. gxf6
{[%clk 0:01:49.4]} 36... Kg8 {[%clk 0:00:08.5]} 37. f7+ {[%clk 0:01:50.8]} 37...
Kxf7 {[%clk 0:00:07.4]} 38. Qg7+ {[%clk 0:01:51.8]} 38... Ke8 {[%clk 0:00:08.6]}
39. Qh8+ {[%clk 0:01:46.6]} 39... Qf8 {[%clk 0:00:06.9]} 40. Qxh7 {[%clk
0:01:47.9]} 40... Qf6 {[%clk 0:00:08]} 41. Qg8+ {[%clk 0:01:47]} 41... Kd7
{[%clk 0:00:04.3]} 42. Qg7+ {[%clk 0:01:46]} 42... Qxg7 {[%clk 0:00:03.4]} 43.
hxg7 {[%clk 0:01:47.9]} 43... Kd6 {[%clk 0:00:03]} 44. Rxb8 {[%clk 0:01:42]}
44... Rxb8 {[%clk 0:00:04.9]} 45. Rb1 {[%clk 0:01:42.4]} 45... Rg8 {[%clk
0:00:05.9]} 46. Rb6+ {[%clk 0:01:42.2]} 46... Kxd5 {[%clk 0:00:07.2]} 47. Rxg6
{[%clk 0:01:43.9]} 47... Kc5 {[%clk 0:00:07.4]} 48. a4 {[%clk 0:01:44.3]} 48...
Kd5 {[%clk 0:00:08.2]} 49. Kg3 {[%clk 0:01:43.9]} 49... Kc5 {[%clk 0:00:09.2]}
50. Kh4 {[%clk 0:01:45.3]} 50... Kd5 {[%clk 0:00:10.6]} 51. Kh5 {[%clk
0:01:46.7]} 1-0